[Event "GER-chT States Women 2022"]
[Site "Braunfels"]
[Date "2022.06.16"]
[Round "1.14"]
[White "Braeutigam, Katerina"]
[Black "Timofeeva, Galina"]
[Result "1/2-1/2"]
[ECO "B24"]
[WhiteElo "1860"]
[BlackElo "1979"]
[Annotator "TA"]
[PlyCount "101"]
[EventDate "2022.06.15"]
[EventType "swiss"]
[EventCountry "GER"]
[SourceTitle "playchess.com"]
[Source "ChessBase"]
[SourceQuality "1"]
[TimeControl "40/5400+30:1800+30"]

{[%evp 9,101,-15,15,6,24,0,0,0,7,-18,5,-18,-7,-10,-1,-11,0,-10,-11,-17,-25,0,-9,-29,0,4,56,60,79,30,63,0,31,20,33,-8,-8,-7,0,0,0,0,-18,0,0,-33,-45,-92,0,-6,376,72,53,0,254,235,1011,1008,985,985,928,951,689,184,182,0,357,327,479,124,140,140,128,139,160,147,136,105,105,0,136,0,0,-45,-51,-3096,-1647,-983,-93,-93,-93,-93,-93,-93]} 1. e4 {[%emt 0:00:02]} c5 {[%emt 0:00:06]} 2. Nc3 {[%emt 0:00:05]} Nc6 {[%emt 0:00:06]} 3. Nf3 {[%emt 0:00:12]} e6 {[%emt 0:00:10]} 4. g3 {[%emt 0:00:12]} a6 {[%emt 0:00:27]} 5. a4 {[%emt 0:00:47]} Qc7 {[%emt 0:00:22]} 6. Bg2 {[%emt 0:00:23] B40: Sicilian: 2...e6, Unusual lines.} Nf6 {[%emt 0:00:57]} 7. d3 {[%emt 0:00:41]} Be7 {[%emt 0:00:11]} 8. O-O {[%emt 0:00:29] The position is equal.} O-O {[%emt 0:00:20] [#]} 9. Nh4 $146 {[%emt 0:02:49]} ({Predecessor:} 9. Ng5 d6 10. f4 Rb8 11. h3 b5 12. axb5 axb5 13. Ne2 Bb7 14. g4 Ra8 15. Rb1 {½-½ (57) Tologontegin,S (2419)-Radzhabov,R (2297) Cheliabinsk 2018}) 9... Rd8 {[%emt 0:09:36]} 10. f4 {[%emt 0:04:58]} d5 {[%emt 0:03:11]} 11. e5 {[%emt 0:22:02]} Ne8 {[%emt 0:00:20]} 12. Nf3 {[%emt 0:03:55]} Rb8 {[%emt 0:15:05]} 13. g4 {[%emt 0:07:03]} b5 {[%emt 0:03:06]} 14. axb5 {[%emt 0:03:36]} axb5 {[%emt 0:00:05][%cal Ba6b5,Bb5b4,Bb4b3][%mdl 32]} 15. Qe2 {[%emt 0:03:58]} b4 {[%emt 0:04:13]} 16. Nd1 {[%emt 0:01:01]} b3 {[%emt 0:02:04]} 17. c3 {[%emt 0:02:36][%cal Bc2c3,Bc3c4][%mdl 32]} d4 {[%emt 0:00:41]} ({Better is} 17... Rb7 $11) 18. c4 $14 {[%emt 0:02:51]} Bd7 {[%emt 0:08:02]} 19. Bh3 {[%emt 0:03:13]} (19. Bd2 $16) 19... Nb4 {[%emt 0:04:32]} 20. f5 {[%emt 0:07:17]} (20. Bd2 $14) 20... exf5 {[%emt 0:10:52]} (20... Nc2 $5 {[%cal Rc2a1]} 21. Rb1 Rb6 $11) 21. gxf5 {[%emt 0:00:23]} f6 {[%emt 0:00:37] Prevents Ng5.} 22. Bf4 {[%emt 0:06:47][%cal Oe5f6]} fxe5 {[%emt 0:08:55]} 23. Nxe5 {[%emt 0:04:52]} Bd6 {[%emt 0:00:24]} 24. f6 {[%emt 0:18:17]} Nxf6 {[%emt 0:14:51]} (24... Bxh3 $2 25. f7+ Kf8 26. Ng6+ $1 {[%mdl 512]} hxg6 27. fxe8=Q+ Rxe8 28. Bxd6+ Kg8 29. Qxe8+ (29. Bxc7 Rxe2 30. Bxb8 Rg2+ 31. Kh1 Re2 $11) (29. Rf8+ $2 Rxf8 30. Bxc7 Rbe8 $19) 29... Rxe8 30. Bxc7 $18) 25. Nxd7 {[%emt 0:00:37]} Rxd7 {[%emt 0:00:14]} 26. Bxd7 {[%emt 0:00:50]} Bxf4 {[%emt 0:01:14]} 27. Be6+ {[%emt 0:01:26]} Kh8 {[%emt 0:00:04]} 28. Qg2 {[%emt 0:02:08]} (28. Bh3 $15) 28... g5 {[%emt 0:04:31]} (28... Nxd3 $17 29. Kh1 Bd6) 29. Ra8 {[%emt 0:00:47]} Kg7 $2 {[%emt 0:00:13][%mdl 8192] [#]} (29... Nxd3 $11 {and Black stays safe.} 30. h4 gxh4) 30. Rxb8 $2 {[%emt 0:00:29]} (30. Rxf4 $1 $18 {[%mdl 512]} Rxa8 31. Qxg5+ Kh8 32. Qxf6+ Qg7+ 33. Qxg7+ Kxg7 34. Rf7+ Kg6 35. Rf1) 30... Qxb8 $16 {[%emt 0:00:01]} 31. Nf2 {[%emt 0:00:35]} (31. h4 $1 $14 h6 32. Nf2) 31... Be3 $2 {[%emt 0:00:09][%mdl 8192]} (31... Nc2 $1 $11 32. Nd1 h5) 32. Kh1 $18 {[%emt 0:00:24] Black must now prevent Ne4.} Qe5 {[%emt 0:00:08]} (32... Qc7 33. Bf5 Qf7) 33. Qb7+ {[%emt 0:00:34]} Kh6 {[%emt 0:00:16]} 34. Ng4+ {[%emt 0:00:32]} Nxg4 {[%emt 0:00:15]} 35. Bxg4 {[%emt 0:00:01] Rf7 would kill now.} Bf4 {[%emt 0:00:38]} 36. Qb6+ $2 {[%emt 0:00:45]} (36. Qf7) 36... Kg7 {[%emt 0:00:14]} 37. Qb7+ {[%emt 0:00:10]} ({White should play} 37. Ra1 $1 $18 {[%cal Ra1a7] White threatens Ra7+ and mate.} Na2 38. Bf3) 37... Kg6 $2 {[%emt 0:02:10][%mdl 8192]} (37... Kh6 $1 $11) 38. h4 {[%emt 0:01:07]} h5 {[%emt 0:02:19]} (38... gxh4 $142 39. Bf3 Kh6) 39. Qb6+ $2 {[%emt 0:00:24]} (39. Bf3 $18 {is the precise move to win.}) 39... Qd6 $16 {[%emt 0:00:51]} 40. Qxd6+ {[%emt 0:00:40]} Bxd6 {[%emt 0:00:02][%mdl 4096] Endgame KRB-KBN} 41. Bf5+ {[%emt 0:12:22]} Kh6 {[%emt 0:00:17]} 42. Be4 {[%emt 0:06:44]} Bf4 {[%emt 0:00:13]} 43. hxg5+ {[%emt 0:02:18]} Kxg5 {[%emt 0:03:14]} 44. Ra1 {[%emt 0:04:42]} (44. Rg1+ $16 Kh4 45. Kg2) 44... Na2 {[%emt 0:17:07]} (44... Bd2 $11 {remains equal.}) 45. Bf3 {[%emt 0:04:34]} (45. Rg1+ $16 Kh4 46. Kg2) 45... h4 {[%emt 0:04:06]} 46. Bd1 {[%emt 0:01:25]} Nc1 {[%emt 0:00:23]} 47. Rxc1 $2 {[%emt 0:01:22][%mdl 8192]} Bxc1 $19 {[%emt 0:00:02]} 48. Bxb3 {[%emt 0:00:14] [#]} Bxb2 $2 {[%emt 0:00:05]} (48... Kf4 $1 $19 {[%cal Rf4e3] has better winning chances.} 49. Bd1 Ke3) 49. Ba4 $17 {[%emt 0:00:18] [#] Black is better.} Kf4 $1 {[%emt 0:00:28] Strongly threatening ...Ke3.} 50. Bc6 {[%emt 0:00:11]} Kg3 {[%emt 0:00:51]} 51. Be4 {[%emt 0:00:14] Weighted Error Value: White=0.74/Black=0.64} 1/2-1/2

[Event "GER-chT States Women 2022"]
[Site "Braunfels"]
[Date "2022.06.16"]
[Round "1.15"]
[White "Noppes, Marina"]
[Black "Leib, Britta"]
[Result "1/2-1/2"]
[ECO "E91"]
[WhiteElo "1922"]
[BlackElo "1906"]
[Annotator "TA"]
[PlyCount "78"]
[EventDate "2022.06.15"]
[EventType "swiss"]
[EventCountry "GER"]
[SourceTitle "playchess.com"]
[Source "ChessBase"]
[SourceQuality "1"]
[TimeControl "40/5400+30:1800+30"]

{[%evp 15,78,32,81,2,0,-26,20,11,10,0,0,0,0,-34,-35,-25,-30,-44,-23,-25,-27,-38,-17,-115,0,0,9,9,6,8,6,0,0,0,0,0,8,0,12,0,0,0,0,-70,-81,-622,-608,-578,-587,-685,-619,-571,-547,-505,-484,-523,-514,-529,-529,-29977,-29978,-29979,-29980,-29982,-29983]} 1. d4 {[%emt 0:00:04]} Nf6 {[%emt 0:00:08]} 2. Nf3 {[%emt 0:00:04]} g6 {[%emt 0:00:27]} 3. c4 {[%emt 0:00:06]} Bg7 {[%emt 0:00:06]} 4. Nc3 {[%emt 0:00:10]} O-O {[%emt 0:00:15]} 5. e4 {[%emt 0:00:04]} d6 {[%emt 0:00:18]} 6. Be2 {[%emt 0:00:07]} Bg4 {[%emt 0:02:00]} 7. h3 {[%emt 0:01:41]} Bxf3 {[%emt 0:01:14]} 8. Bxf3 {[%emt 0:00:02]} e5 {[%emt 0:01:36]} (8... Nfd7 $14) 9. dxe5 {[%emt 0:01:10] E91: King's Indian: Classical: 6 Be2, unusual replies including 6...c5 and 6...Bg4.} (9. d5 $1 $16) 9... dxe5 $11 {[%emt 0:00:13]} 10. Be3 {[%emt 0:00:44] [#]} c6 $146 {[%emt 0:07:36]} (10... Nc6 $142) ({Predecessor:} 10... Nc6 11. O-O Nd4 12. Nb5 Ne6 13. Qb3 c6 14. Rfd1 Qe7 15. Nc3 b6 16. Qa4 Qc7 {0-1 (51) Hajek,J (2188)-Skuja,A (2248) Pardubice 2001}) 11. Qb3 {[%emt 0:05:59] The position is equal.} Qc7 {[%emt 0:03:46]} 12. c5 {[%emt 0:04:47]} Nbd7 {[%emt 0:02:42][%cal Bb8d7,Bd7f8,Bf8e6][%mdl 32]} 13. O-O {[%emt 0:00:55]} Rfd8 {[%emt 0:08:17]} 14. Rac1 {[%emt 0:02:47]} Nf8 {[%emt 0:03:32]} 15. Rfd1 {[%emt 0:09:31]} Ne6 {[%emt 0:04:32]} 16. Ne2 {[%emt 0:00:24] Against Nd4} Bf8 {[%emt 0:15:21]} 17. Qc4 {[%emt 0:01:24]} a5 {[%emt 0:00:16]} 18. Nc3 {[%emt 0:06:37]} Rxd1+ {[%emt 0:08:51]} 19. Rxd1 {[%emt 0:09:45] [#]} (19. Bxd1 $11 Qe7 20. Bb3) 19... Qe7 {[%emt 0:02:45]} (19... Nxc5 $1 $17 {[%cal Oh7h5][%mdl 512]} 20. Ne2 (20. Bxc5 b5 $17) (20. Rc1 Nfd7) 20... Ne6) 20. Na4 {[%emt 0:04:55]} h5 {[%emt 0:01:18]} 21. Qc3 {[%emt 0:04:03]} Nd7 {[%emt 0:09:29] [#]} 22. Rxd7 $1 {[%emt 0:15:15]} Qxd7 {[%emt 0:00:06]} 23. Nb6 {[%emt 0:00:03]} Qd8 {[%emt 0:01:27]} 24. Nxa8 {[%emt 0:00:43]} Qxa8 {[%emt 0:00:07]} 25. Qxe5 {[%emt 0:02:43]} Bg7 {[%emt 0:07:56]} 26. Qg3 {[%emt 0:03:33]} Qf8 {[%emt 0:00:12]} 27. Be2 {[%emt 0:02:07]} Nxc5 {[%emt 0:05:52]} 28. Bc4 {[%emt 0:00:15] Hoping for Qxg6.} b5 {[%emt 0:00:45]} 29. Bxc5 {[%emt 0:15:50]} (29. Bxf7+ $11 Qxf7 30. Bxc5) 29... Qxc5 {[%emt 0:00:06][%mdl 4096] Endgame KQB-KQB} 30. Bb3 {[%emt 0:00:24][%mdl 8192] Loses the game.} (30. Qb8+ $17 Bf8 31. Bf1) 30... Qc1+ $19 {[%emt 0:04:21]} 31. Kh2 {[%emt 0:00:08]} a4 {[%emt 0:00:44]} 32. Be6 {[%emt 0:06:06]} fxe6 {[%emt 0:02:55]} 33. Qxg6 {[%emt 0:00:03]} Qf4+ {[%emt 0:00:24]} 34. Kg1 {[%emt 0:00:08]} Qf7 {[%emt 0:02:53]} 35. Qg3 {[%emt 0:00:04]} Kh7 {[%emt 0:01:08]} 36. Qd6 {[%emt 0:00:36]} Bxb2 {[%emt 0:01:17] White must now prevent ...e5.} 37. Qxc6 {[%emt 0:00:10]} Bd4 {[%emt 0:00:26] Black mates.} 38. Qc2 {[%emt 0:00:18]} b4 {[%emt 0:02:05]} 39. Qd2 {[%emt 0:01:46] [#]} Qxf2+ $1 {[%emt 0:00:19][%mdl 33280] Weighted Error Value: White=0.65/Black=0.13 (very precise) . An unexpected result.} 1/2-1/2

[Event "GER-chT States Women 2022"]
[Site "Braunfels"]
[Date "2022.06.16"]
[Round "1.16"]
[White "Freter, Anke"]
[Black "Roesler, Hannah Clara"]
[Result "1-0"]
[ECO "B25"]
[WhiteElo "1856"]
[BlackElo "1718"]
[Annotator "NA RC COMBH"]
[PlyCount "128"]
[EventDate "2022.06.15"]
[EventType "swiss"]
[EventCountry "GER"]
[SourceTitle "playchess.com"]
[Source "ChessBase"]
[SourceQuality "1"]
[TimeControl "40/5400+30:1800+30"]

1. e4 {[%emt 0:00:04]} c5 {[%emt 0:00:13]} 2. Nc3 {[%emt 0:00:10]} Nc6 {[%emt 0:00:08]} 3. g3 {[%emt 0:00:08]} g6 {[%emt 0:00:25]} 4. Bg2 {[%emt 0:00:10]} Bg7 {[%emt 0:00:27]} 5. d3 {[%emt 0:00:09]} d6 {[%emt 0:00:55]} 6. f4 {[%emt 0:00:18]} Nf6 {[%emt 0:02:23]} 7. Nf3 {[%emt 0:01:52]} O-O {[%emt 0:01:29]} 8. O-O {[%emt 0:01:01]} e6 {[%emt 0:01:38]} 9. h3 {[%emt 0:07:46]} Nd4 {[%emt 0:04:16]} 10. Be3 {[%emt 0:03:20]} Ne8 {[%emt 0:03:13]} 11. Qd2 {[%emt 0:04:15]} Nc7 {[%emt 0:03:40]} 12. Nd1 {[%emt 0:05:44]} Rb8 {[%emt 0:03:47]} 13. c3 {[%emt 0:02:19]} Nxf3+ {[%emt 0:01:13]} 14. Rxf3 {[%emt 0:02:33]} Qe7 {[%emt 0:04:16]} 15. g4 {[%emt 0:13:32]} f5 {[%emt 0:03:36]} 16. Rg3 {[%emt 0:09:48]} Kh8 {[%emt 0:08:20]} 17. Bf2 {[%emt 0:06:28]} b5 {[%emt 0:03:05]} 18. g5 {[%emt 0:08:40]} Bb7 {[%emt 0:03:40]} 19. h4 {[%emt 0:01:04]} Rbd8 {[%emt 0:02:20]} 20. exf5 {[%emt 0:02:50]} Bxg2 {[%emt 0:16:46]} 21. f6 {[%emt 0:00:06]} Bxf6 {[%emt 0:00:27]} 22. gxf6 {[%emt 0:00:06]} Qxf6 {[%emt 0:00:27]} 23. Rxg2 {[%emt 0:01:08]} Nd5 {[%emt 0:01:58]} 24. Bg3 {[%emt 0:03:26]} Nxf4 {[%emt 0:02:14]} 25. Qxf4 {[%emt 0:01:53]} Qxf4 {[%emt 0:00:09]} 26. Bxf4 {[%emt 0:00:05]} Rxf4 {[%emt 0:00:05]} 27. Rh2 {[%emt 0:00:57]} Rdf8 {[%emt 0:03:16]} 28. Nf2 {[%emt 0:01:33]} Rf3 {[%emt 0:02:10]} 29. Re1 {[%emt 0:02:21]} e5 {[%emt 0:01:31]} 30. Re2 {[%emt 0:00:55]} R8f4 {[%emt 0:04:58]} 31. Kg2 {[%emt 0:01:16]} Rf7 {[%emt 0:01:57]} 32. Rh3 {[%emt 0:00:40]} R3f4 {[%emt 0:00:58]} 33. Ne4 {[%emt 0:00:37]} Rg4+ {[%emt 0:02:59]} 34. Kh2 {[%emt 0:00:47]} Rf1 {[%emt 0:10:13]} 35. Rf2 {[%emt 0:01:45]} Rxf2+ {[%emt 0:02:54]} 36. Nxf2 {[%emt 0:00:03]} Ra4 {[%emt 0:00:19]} 37. a3 {[%emt 0:00:38]} d5 {[%emt 0:00:50]} 38. h5 {[%emt 0:01:57]} Rf4 {[%emt 0:03:31]} 39. Kg3 {[%emt 0:00:33]} g5 {[%emt 0:01:11]} 40. h6 {[%emt 0:02:36]} e4 {[%emt 0:01:40]} 41. dxe4 {[%emt 0:30:15]} dxe4 {[%emt 0:30:32]} 42. Kg2 {[%emt 0:01:09]} Kg8 {[%emt 0:00:00]} 43. Rg3 {[%emt 0:00:00]} Kf7 {[%emt 0:00:00]} 44. Rxg5 {[%emt 0:00:00]} Kf6 {[%emt 0:00:00]} 45. Rxc5 {[%emt 0:00:00]} e3 {[%emt 0:00:00]} 46. Nd3 {[%emt 0:00:00]} e2 {[%emt 0:00:00]} 47. Re5 {[%emt 0:00:00]} Rh4 {[%emt 0:00:00]} 48. Rxe2 {[%emt 0:00:00]} Rxh6 {[%emt 0:00:00]} 49. Nb4 {[%emt 0:00:00]} Rg6+ {[%emt 0:00:00]} 50. Kf3 {[%emt 0:00:00]} Kf5 {[%emt 0:00:00]} 51. Rh2 {[%emt 0:00:00]} h6 {[%emt 0:00:00]} 52. Rh5+ {[%emt 0:00:00]} Ke6 {[%emt 0:00:58]} 53. Rxb5 {[%emt 0:00:00]} Rf6+ {[%emt 0:00:50]} 54. Ke4 {[%emt 0:00:00]} Rf2 {[%emt 0:00:48]} 55. Nd3 {[%emt 0:00:00]} Re2+ {[%emt 0:01:05]} 56. Kd4 {[%emt 0:00:00]} Kf6 {[%emt 0:00:37]} 57. Rh5 {[%emt 0:00:00]} Kg7 {[%emt 0:00:16]} 58. Ra5 {[%emt 0:00:00]} Re7 {[%emt 0:00:22]} 59. c4 {[%emt 0:00:00]} Kg6 {[%emt 0:00:37]} 60. Nf4+ {[%emt 0:00:00]} Kf7 {[%emt 0:00:35]} 61. Ra6 {[%emt 0:00:00]} Kg7 {[%emt 0:00:21]} 62. c5 {[%emt 0:00:00]} Rf7 {[%emt 0:01:39]} 63. Ke5 {[%emt 0:00:00]} Re7+ {[%emt 0:01:00]} 64. Re6 {[%emt 0:00:00]} Rxe6+ 1-0

[Event "GER-chT States Women 2022"]
[Site "Braunfels"]
[Date "2022.06.16"]
[Round "1.17"]
[White "Rieping, Lea"]
[Black "Khrapko, Marharyta"]
[Result "0-1"]
[ECO "B32"]
[WhiteElo "1912"]
[BlackElo "2110"]
[Annotator "NA RC"]
[PlyCount "78"]
[EventDate "2022.06.15"]
[EventType "swiss"]
[EventCountry "GER"]
[SourceTitle "playchess.com"]
[Source "ChessBase"]
[SourceQuality "1"]
[TimeControl "40/5400+30:1800+30"]

1. d4 {[%emt 0:00:02]} c5 {[%emt 0:00:08]} 2. Nf3 {[%emt 0:02:27]} cxd4 {[%emt 0:00:07]} 3. Nxd4 {[%emt 0:00:07]} e5 {[%emt 0:00:02]} 4. Nb5 {[%emt 0:13:37]} d6 {[%emt 0:00:02]} 5. e4 {[%emt 0:00:59]} Nc6 {[%emt 0:02:04]} 6. N1c3 {[%emt 0:00:22]} a6 {[%emt 0:00:04]} 7. Na3 {[%emt 0:00:06]} Be7 {[%emt 0:00:02]} 8. Nd5 {[%emt 0:06:09]} Nf6 {[%emt 0:00:10]} 9. Nxf6+ {[%emt 0:07:23]} Bxf6 {[%emt 0:00:05]} 10. Nc4 {[%emt 0:00:50]} O-O {[%emt 0:00:19]} 11. g3 {[%emt 0:05:12]} Be6 {[%emt 0:04:27]} 12. Ne3 {[%emt 0:02:31]} Qd7 {[%emt 0:04:28]} 13. Bg2 {[%emt 0:01:03]} Bd8 {[%emt 0:00:03]} 14. O-O {[%emt 0:02:16]} Ne7 {[%emt 0:03:16]} 15. f4 {[%emt 0:12:39]} exf4 {[%emt 0:04:55]} 16. gxf4 {[%emt 0:00:11]} f5 {[%emt 0:03:05]} 17. exf5 {[%emt 0:00:59]} Nxf5 {[%emt 0:00:37]} 18. Nxf5 {[%emt 0:00:57]} Bxf5 {[%emt 0:03:49]} 19. Be3 {[%emt 0:05:35]} Rf6 {[%emt 0:03:01]} 20. Qd5+ {[%emt 0:03:32]} Be6 {[%emt 0:08:08]} 21. Qd3 {[%emt 0:04:08]} Rg6 {[%emt 0:07:35]} 22. f5 {[%emt 0:01:58]} Rxg2+ {[%emt 0:00:04]} 23. Kxg2 {[%emt 0:00:04]} Qc6+ {[%emt 0:00:06]} 24. Kg1 {[%emt 0:00:06]} Bc4 {[%emt 0:00:54]} 25. Qd2 {[%emt 0:02:44]} Bxf1 {[%emt 0:05:18]} 26. Rxf1 {[%emt 0:00:08]} Bf6 {[%emt 0:01:04]} 27. c3 {[%emt 0:11:19]} Re8 {[%emt 0:00:56]} 28. Re1 {[%emt 0:05:46]} Qf3 {[%emt 0:04:00]} 29. Bf2 {[%emt 0:00:35]} Be5 {[%emt 0:00:40]} 30. Bg3 {[%emt 0:07:19]} Qxf5 {[%emt 0:00:46]} 31. c4 {[%emt 0:01:20]} Qg4 {[%emt 0:00:29]} 32. Qd5+ {[%emt 0:01:47]} Qe6 {[%emt 0:01:59]} 33. Qxb7 {[%emt 0:00:17]} Qxc4 {[%emt 0:00:16]} 34. Bxe5 {[%emt 0:00:57]} dxe5 {[%emt 0:00:04]} 35. Qd7 {[%emt 0:00:22]} Rf8 {[%emt 0:02:34]} 36. Qd2 {[%emt 0:01:39]} h6 {[%emt 0:01:24]} 37. Qg2 {[%emt 0:00:35]} Qd4+ {[%emt 0:00:50]} 38. Kh1 {[%emt 0:00:09]} Rf2 {[%emt 0:00:23]} 39. Qh3 {[%emt 0:01:11]} Qxb2 {[%emt 0:01:14]} 0-1

[Event "GER-chT States Women 2022"]
[Site "Braunfels"]
[Date "2022.06.16"]
[Round "1.18"]
[White "Birkholz, Olga"]
[Black "Nizamova, Rita"]
[Result "1-0"]
[ECO "A48"]
[WhiteElo "1993"]
[BlackElo "1814"]
[Annotator "TA"]
[PlyCount "39"]
[EventDate "2022.06.15"]
[EventType "swiss"]
[EventCountry "GER"]
[SourceTitle "playchess.com"]
[Source "ChessBase"]
[SourceQuality "1"]
[TimeControl "40/5400+30:1800+30"]

{[%evp 9,39,13,13,4,21,-4,-1,-16,-17,-41,38,41,40,4,10,0,62,0,-19,-17,152,145,270,296,452,469,672,666,762,745,1677,1651]} 1. d4 {[%emt 0:00:10]} Nf6 {[%emt 0:00:09]} 2. Nf3 {[%emt 0:00:08]} g6 {[%emt 0:00:19]} 3. Nc3 {[%emt 0:00:28]} d5 {[%emt 0:00:18]} 4. Bf4 {[%emt 0:00:15]} Nh5 {[%emt 0:01:59]} 5. Bg5 {[%emt 0:00:38]} h6 {[%emt 0:00:58]} 6. Bd2 {[%emt 0:00:45] D00: 1 d4 d5: Unusual lines.} Bg7 {[%emt 0:00:14] [#]} 7. h3 $146 {[%emt 0:01:59]} ({Predecessor:} 7. e3 c6 8. Bd3 Be6 9. O-O Nd7 10. e4 dxe4 11. Nxe4 Nhf6 12. c3 Nxe4 13. Bxe4 {½-½ (38) Weaver,L (1709)-Neatherway,A (1838) London 2016}) 7... O-O {[%emt 0:06:08]} 8. g4 {[%emt 0:02:02] The position is equal.} Nf6 {[%emt 0:00:17][%cal Oc7c5]} 9. Qc1 {[%emt 0:03:45]} h5 {[%emt 0:14:16]} ({Better is} 9... Kh7 $1 $15) 10. Bh6 $14 {[%emt 0:04:11]} Nc6 {[%emt 0:06:21]} 11. gxh5 {[%emt 0:07:32]} Nxh5 {[%emt 0:03:55]} 12. Rg1 {[%emt 0:01:29]} Qd6 {[%emt 0:20:42]} (12... Nxd4 $11 13. Nxd4 Bxd4) 13. Bxg7 {[%emt 0:01:05]} (13. Qg5 $1 $14) 13... Kxg7 $11 {[%emt 0:03:27]} 14. Qg5 {[%emt 0:00:38] [#] And now Qxh5 would win.} Kh7 $2 {[%emt 0:01:43]} (14... Nf6 $11) 15. Qxd5 $16 {[%emt 0:13:35]} ({Resist} 15. Nxd5 $6 Bf5 16. c4 Be4 $14) 15... Qb4 {[%emt 0:02:28]} (15... Qxd5 $16 16. Nxd5 Bd7) 16. O-O-O $18 {[%emt 0:00:45]} Nf6 {[%emt 0:04:56]} (16... Bf5 $142 17. e4 Nf4) 17. Qg5 {[%emt 0:03:07] White is clearly winning.} Bf5 {[%emt 0:04:41]} (17... Kg7 $142 18. d5 Na5) 18. e4 {[%emt 0:00:13][%cal Be2e4,Be4e5][%mdl 32]} Bd7 {[%emt 0:02:55]} 19. e5 {[%emt 0:06:16]} Nh5 {[%emt 0:00:57]} 20. Bd3 {[%emt 0:00:17] Weighted Error Value: White=0.15 (very precise) /Black=0.84} 1-0

[Event "GER-chT States Women 2022"]
[Site "Braunfels"]
[Date "2022.06.16"]
[Round "1.19"]
[White "Moeller, Hannah"]
[Black "Stangl, Anita"]
[Result "0-1"]
[ECO "A04"]
[WhiteElo "1833"]
[BlackElo "2041"]
[Annotator "NA RC"]
[PlyCount "70"]
[EventDate "2022.06.15"]
[EventType "swiss"]
[EventCountry "GER"]
[SourceTitle "playchess.com"]
[Source "ChessBase"]
[SourceQuality "1"]
[TimeControl "40/5400+30:1800+30"]

1. Nf3 {[%emt 0:00:02]} e6 {[%emt 0:00:10]} 2. g3 {[%emt 0:00:05]} d5 {[%emt 0:00:14]} 3. Bg2 {[%emt 0:00:35]} c6 {[%emt 0:01:38]} 4. O-O {[%emt 0:12:20]} Bd6 {[%emt 0:01:25]} 5. d4 {[%emt 0:00:09]} Nd7 {[%emt 0:02:08]} 6. b3 {[%emt 0:00:49]} Qe7 {[%emt 0:02:13]} 7. Bb2 {[%emt 0:00:14]} Ngf6 {[%emt 0:07:07]} 8. c4 {[%emt 0:01:35]} Ne4 {[%emt 0:01:21]} 9. Nc3 {[%emt 0:00:24]} f5 {[%emt 0:00:52]} 10. Nxe4 {[%emt 0:01:18]} fxe4 {[%emt 0:07:02]} 11. Ne5 {[%emt 0:00:57]} O-O {[%emt 0:01:46]} 12. f3 {[%emt 0:02:13]} Bxe5 {[%emt 0:02:25]} 13. dxe5 {[%emt 0:00:11]} exf3 {[%emt 0:01:24]} 14. exf3 {[%emt 0:00:10]} dxc4 {[%emt 0:18:20]} 15. bxc4 {[%emt 0:00:08]} Rd8 {[%emt 0:00:27]} 16. Qe2 {[%emt 0:01:11]} Nb6 {[%emt 0:03:20]} 17. Rac1 {[%emt 0:05:10]} Na4 {[%emt 0:02:24]} 18. Ba1 {[%emt 0:00:43]} Bd7 {[%emt 0:01:53]} 19. f4 {[%emt 0:01:24]} Be8 {[%emt 0:00:57]} 20. Qe3 {[%emt 0:02:09]} Bg6 {[%emt 0:03:05]} 21. Rfd1 {[%emt 0:03:56]} Rxd1+ {[%emt 0:01:56]} 22. Rxd1 {[%emt 0:00:06]} Rd8 {[%emt 0:00:22]} 23. Rxd8+ {[%emt 0:05:21]} Qxd8 {[%emt 0:00:10]} 24. Qd4 {[%emt 0:01:46]} Qa5 {[%emt 0:06:32]} 25. Kf2 {[%emt 0:02:21]} Nc5 {[%emt 0:00:34]} 26. Bc3 {[%emt 0:05:15]} Qxa2+ {[%emt 0:02:32]} 27. Bd2 {[%emt 0:00:10]} h6 {[%emt 0:03:12]} 28. Bh3 {[%emt 0:13:38]} Kh7 {[%emt 0:05:29]} 29. Qxc5 {[%emt 0:10:04]} Qxd2+ {[%emt 0:00:11]} 30. Kf3 {[%emt 0:00:16]} Bh5+ {[%emt 0:04:15]} 31. g4 {[%emt 0:01:43]} Qxh2 {[%emt 0:00:53]} 32. gxh5 {[%emt 0:02:16]} Qxh3+ {[%emt 0:00:06]} 33. Ke4 {[%emt 0:00:04]} Qg2+ {[%emt 0:01:51]} 34. Kd3 {[%emt 0:00:44]} Qf3+ {[%emt 0:01:27]} 35. Kc2 {[%emt 0:01:06]} Qxf4 {[%emt 0:01:26]} 0-1